lending/lending_fUSD_20250224
["ID","MTS","AMOUNT","RATE_DAILY","PERIOD"]
[354311494,1740406275979,-190.47,0.00025641,2]
[354311495,1740406275988,-150.0,0.00025647,2]
[354311496,1740406275998,-150.0,0.00025649,2]
[354311497,1740406276007,-150.0,0.00025691,2]
[354311498,1740406276018,-2067.23,0.000257,120]
[354311499,1740406276027,-150.0,0.00025716,2]
[354311500,1740406276037,-150.0,0.00025721,2]
[354311501,1740406276047,-150.0,0.00025753,2]
[354311502,1740406276056,-150.0,0.00025756,2]
[354311503,1740406276065,-500.0,0.00025757,120]
[354311504,1740406276074,-150.0,0.00025785,2]
[354311505,1740406276083,-150.0,0.00025791,2]
[354311506,1740406276093,-150.0,0.000258,2]
[354311507,1740406276102,-2910.22172082,0.000259,7]
[354311508,1740406276111,-321.54,0.000259,2]
[354311509,1740406276120,-608.893383,0.000259,2]
[354311510,1740406276129,-355.746999,0.000259,2]
[354311511,1740406276138,-836.3436736,0.000259,2]
[354311512,1740406276147,-197.65555556,0.00025918,120]
[354311513,1740406276157,-849.41,0.00025934,2]
[354311514,1740406276166,-5984.58187274,0.00025956,2]
[354311515,1740406276175,-573.30999489,0.0002599,2]
[354311516,1740406276185,-900.0,0.00026,27]
[354311517,1740406276194,-4319.69277295,0.00026,2]
[354311518,1740406276203,-4433.65,0.00026,2]
[354311519,1740406276213,-83235.79406285,0.00026,2]
[354311520,1740406276222,-5000.0,0.00026,4]
[354311521,1740406276232,-3168.0489,0.00026,120]
[354311522,1740406276241,-500.0,0.00026,120]
[354311523,1740406276251,-21000.0,0.00026,120]
[354311524,1740406276260,-3165.2391,0.00026,60]
[354311525,1740406276270,-204557.19478182,0.00026,120]
[354311526,1740406276279,-151.0,0.00026,7]
[354311527,1740406276288,-151.0,0.00026,7]
[354311528,1740406276297,-151.0,0.00026,7]
[354311529,1740406276306,-150.0,0.00026059,120]
[354311530,1740406276315,-2451.48082,0.00026088,30]
[354311531,1740406276324,-373.0,0.00026098,2]
[354311532,1740406276334,-12120.46058444,0.00026234,3]
[354311533,1740406276343,-2451.48082,0.00026288,30]
[354311534,1740406276352,-1210.03897329,0.00026325,50]
[354311535,1740406276363,-26228.63266492,0.000264,2]
[354311536,1740406276374,-250.3192447,0.000264,2]
[354311537,1740406276383,-500.0,0.00026448,7]
[354311538,1740406276392,-373.0,0.00026466,2]
[354311539,1740406276403,-2451.48082,0.00026488,30]
[354311540,1740406276413,-150.0,0.0002653,7]
[354311541,1740406276423,-180.0,0.00026575,120]
[354311542,1740406276432,-2451.48082,0.00026688,30]
[354311543,1740406276442,-172.51229759,0.000267,60]
[354311544,1740406276451,-150.0,0.00026817,120]
[354311545,1740406276460,-1603.78739812,0.00026841,55]
[354311546,1740406276469,-2451.48082,0.00026888,30]
[354311547,1740406276478,-1254.21,0.000269,14]
[354311548,1740406276487,-197.65555556,0.00026904,120]
[354311549,1740406276496,-800.0,0.00026986,120]
[354311550,1740406276505,-416.41,0.00026986,120]
[354311551,1740406276517,-422.0,0.00026996,30]
[354311552,1740406276526,-422.0,0.00026996,90]
[354311553,1740406276536,-500.0,0.00026996,7]
[354311554,1740406276545,-500.0,0.00026996,7]
[354311555,1740406276554,-900.0,0.00027,28]
[354311556,1740406276563,-250.0,0.00027,2]
[354311557,1740406276572,-18364.03355051,0.00027,2]
[354311558,1740406276582,-988.69370158,0.00027,2]
[354311559,1740406276591,-1500.0,0.00027,10]
[354311560,1740406276600,-250.0,0.00027,2]
[354311561,1740406276610,-5288.49500931,0.00027,7]
[354311562,1740406276619,-1857.90611153,0.00027,14]
[354311563,1740406276628,-246.55645114,0.00027,30]
[354311564,1740406276638,-52000.00999301,0.00027,10]
[354311565,1740406276647,-91177.06138345,0.00027,30]
[354311566,1740406276656,-78104.0973046,0.00027,120]
[354311567,1740406276666,-500.0,0.00027,120]
[354311568,1740406276675,-1679.82566708,0.00027,60]
[354311569,1740406276685,-3033.03372191,0.00027,90]
[354311570,1740406276694,-3981.612694,0.00027,2]
[354311571,1740406276704,-373.0,0.00027064,2]
[354311572,1740406276713,-2451.48082,0.00027088,30]
[354311573,1740406276723,-97751.53287632,0.000271,60]
[354311574,1740406276732,-463.02,0.000271,120]
[354311575,1740406276741,-158.27089622,0.000271,2]
[354311576,1740406276751,-3508.78,0.00027123,2]
[354311577,1740406276761,-1292.28150564,0.00027133,31]
[354311578,1740406276771,-1187.29,0.00027149,30]
[354311579,1740406276780,-192.92447968,0.00027188,2]
[354311580,1740406276790,-4161.1559065,0.00027188,2]
[354311581,1740406276800,-250.8166569,0.000272,30]
[354311582,1740406276809,-166.0817616,0.00027278,2]
[354311583,1740406276819,-2546115.72655374,0.00027288,5]
[354311584,1740406276828,-2451.48082,0.00027288,30]
[354311585,1740406276838,-1405.25343642,0.0002736,120]
[354311586,1740406276848,-250.0,0.0002737,2]
[354311587,1740406276857,-404.46231665,0.00027389,120]
[354311588,1740406276866,-1000.0,0.00027396,60]
[354311589,1740406276875,-1000.0,0.00027396,90]
[354311590,1740406276885,-5590.79394607,0.00027397,90]
[354311591,1740406276895,-2000.0,0.00027397,30]
[354311592,1740406276904,-2000.0,0.00027397,30]
[354311593,1740406276914,-2000.0,0.00027397,30]
[354311594,1740406276924,-2000.0,0.00027397,30]
[354311595,1740406276933,-2000.0,0.00027397,30]
[354311596,1740406276943,-2000.0,0.00027397,30]
[354311597,1740406276952,-2000.0,0.00027397,30]
[354311598,1740406276962,-2000.0,0.00027397,30]
[354311599,1740406276971,-2000.0,0.00027397,30]
[354311600,1740406276980,-2000.0,0.00027397,30]
[354311601,1740406276990,-2000.0,0.00027397,30]
[354311602,1740406276999,-2000.0,0.00027397,30]
[354311603,1740406277008,-2000.0,0.00027397,30]
[354311604,1740406277019,-2000.0,0.00027397,30]
[354311605,1740406277029,-2000.0,0.00027397,30]
[354311606,1740406277038,-2000.0,0.00027397,30]
[354311607,1740406277138,-2000.0,0.00027397,30]
[354311608,1740406277149,-2000.0,0.00027397,30]
[354311609,1740406277158,-2000.0,0.00027397,30]
[354311610,1740406277168,-1976.42469663,0.00027397,30]
[354311611,1740406277177,-151.0,0.00027397,7]
[354311612,1740406277187,-644.09,0.00027397,60]
[354311613,1740406277196,-4000.0,0.00027397,2]
[354311614,1740406277206,-275.73,0.00027397,120]
[354311615,1740406277216,-151.0,0.00027397,7]
[354311616,1740406277225,-151.0,0.00027397,7]
[354311617,1740406277235,-151.0,0.00027397,7]
[354311618,1740406277244,-151.0,0.00027397,7]
[354311619,1740406277253,-151.0,0.00027397,7]
[354311620,1740406277264,-151.0,0.00027397,7]
[354311621,1740406277273,-151.0,0.00027397,7]
[354311622,1740406277283,-271.022169,0.00027397,7]
[354311623,1740406277293,-494.08,0.00027397,2]
[354311624,1740406277303,-171.72,0.00027397,10]
[354311625,1740406277312,-241.0,0.000274,120]
[354311626,1740406277322,-100366.84445729,0.000274,60]
[354311627,1740406277331,-151.0,0.000274,7]
[354311628,1740406277341,-151.0,0.000274,7]
[354311629,1740406277351,-153.49,0.000274,31]
[354311630,1740406277364,-153.49,0.000274,31]
[354311631,1740406277374,-153.49,0.000274,31]
[354311632,1740406277383,-153.49,0.000274,31]
[354311633,1740406277393,-153.49,0.000274,31]
[354311634,1740406277405,-153.49,0.000274,31]
[354311635,1740406277415,-153.49,0.000274,31]
[354311636,1740406277424,-153.49,0.000274,31]
[354311637,1740406277434,-153.49,0.000274,31]
[354311638,1740406277445,-153.49,0.000274,31]
[354311639,1740406277454,-153.49,0.000274,31]
[354311640,1740406277463,-153.49,0.000274,31]
[354311641,1740406277472,-151.0,0.000274,7]
[354311642,1740406277482,-2451.48082,0.00027488,30]
[354311643,1740406277491,-191.98842283,0.000275,2]
[354311644,1740406277501,-373.0,0.00027616,2]
[354311645,1740406277510,-250.23,0.00027671,2]
[354311646,1740406277521,-2451.48082,0.00027688,30]
[354311647,1740406277530,-391.0,0.0002783,15]
[354311648,1740406277539,-150.0,0.0002786,10]
[354311649,1740406277549,-2451.48082,0.00027888,30]
[354311650,1740406277558,-197.65555556,0.0002789,120]
[354311651,1740406277568,-3000.0,0.000279,2]
[354311652,1740406277578,-900.0,0.00028,29]
[354311653,1740406277588,-1500.0,0.00028,10]
[354311654,1740406277597,-1000.0,0.00028,120]
[354311655,1740406277607,-500.0,0.00028,2]
[354311656,1740406277616,-359.66706718,0.00028,120]
[354311657,1740406277625,-25337.35918782,0.00028,2]
[354311658,1740406277635,-506.74718376,0.00028,2]
[354311659,1740406277644,-2509.56316797,0.00028,120]
[354311660,1740406277653,-260877.49103226,0.00028,120]
[354311661,1740406277663,-100000.01,0.00028,30]
[354311662,1740406277672,-373.0,0.00028031,2]
[354311663,1740406277681,-1677.36325155,0.00028057,2]
[354311664,1740406277691,-2451.48082,0.00028088,30]
[354311665,1740406277700,-500.0,0.00028092,7]
[354311666,1740406277710,-849.41,0.00028198,2]
[354311667,1740406277719,-2451.48082,0.00028288,30]
[354311668,1740406277728,-2451.48082,0.00028488,30]
[354311669,1740406277737,-260944.487,0.000285,30]
[354311670,1740406277747,-500.0,0.0002864,7]
[354311671,1740406277756,-500.0,0.0002864,7]
[354311672,1740406277766,-2451.48082,0.00028688,30]
[354311673,1740406277776,-180.0,0.00028767,120]
[354311674,1740406277785,-197.65555556,0.00028877,120]
[354311675,1740406277794,-161.54,0.0002888,120]
[354311676,1740406277804,-2451.48082,0.00028888,30]
[354311677,1740406277813,-1389.08,0.000289,120]
[354311678,1740406277823,-373.0,0.00028997,2]
[354311679,1740406277832,-1500.0,0.00029,10]
[354311680,1740406277842,-1000.0,0.00029,120]
[354311681,1740406277851,-1832.0,0.00029,120]
[354311682,1740406277865,-900.0,0.00029,30]
[354311683,1740406277874,-18117.61540903,0.00029,120]
[354311684,1740406277883,-17688.85985855,0.00029,30]
[354311685,1740406277893,-5864.13536706,0.00029,120]
[354311686,1740406277902,-222.5,0.00029012,2]
[354311687,1740406277911,-500.0,0.00029149,120]
[354311688,1740406277921,-639.26653794,0.000295,10]
[354311689,1740406277930,-132258.43673539,0.000297,120]
[354311690,1740406277939,-1187.29,0.00029733,30]
[354311691,1740406277948,-500.0,0.00029736,7]
[354311692,1740406277957,-21945.26638854,0.0002976,2]
[354311693,1740406277966,-197.65555556,0.00029863,120]
[354311694,1740406277975,-213.744,0.0002989,120]
[354311695,1740406277985,-20003.05684024,0.000299,2]
[354311696,1740406277994,-1505.97561748,0.000299,120]
[354311697,1740406278004,-586.99526724,0.000299,2]
[354311698,1740406278015,-226.83587035,0.0002999,2]
[354311699,1740406278024,-1000.0,0.00029999,120]
[354311700,1740406278033,-1734.76492791,0.0003,2]
[354311701,1740406278043,-150.0,0.0003,2]
[354311702,1740406278051,-150.0,0.0003,2]
[354311703,1740406278061,-949.00287869,0.0003,2]
[354311704,1740406278070,-2000.0,0.0003,14]
[354311705,1740406278079,-68070.25383242,0.0003,20]
[354311706,1740406278089,-2260.37279879,0.0003,2]
[354311707,1740406278099,-1500.0,0.0003,14]
[354311708,1740406278108,-7357.91,0.0003,7]
[354311709,1740406278117,-554.54346796,0.0003,2]
[354311710,1740406278126,-45621.69767701,0.0003,15]
[354311711,1740406278274,-4232.84058231,0.0003,15]
[354311712,1740406278284,-608.17223055,0.0003,120]
[354311713,1740406278295,-439.05161663,0.0003,120]
[354311714,1740406278305,-60.94838337,0.0003,30]
[354311715,1740406278318,-539.36258777,0.0003,30]
[354311716,1740406278330,-1118.34106654,0.0003,30]
[354311717,1740406278347,-574.10283594,0.00017178,2]
[354311718,1740406278359,-17.43366596,0.0003,30]
[354311719,1740406278370,-950.0,0.0003,120]
[354311720,1740406278379,-188.48916475,0.0003,120]
[354311721,1740406278396,-494.01,0.00017506,2]
[354311722,1740406278406,-403.33318907,0.0003,120]
[354311723,1740406278583,-392.51554355,0.00016438,2]
[354311724,1740406278593,-500.0,0.00016767,2]
[354311725,1740406278604,-1142.522474,0.00016849,2]
[354311726,1740406278613,-500.0,0.00016849,2]
[354311727,1740406278622,-1142.522474,0.00016931,2]
[354311728,1740406278632,-500.0,0.00016931,2]
[354311729,1740406278641,-1142.522474,0.00017013,2]
[354311730,1740406278651,-500.0,0.00017013,2]
[354311731,1740406278661,-500.0,0.00017095,2]
[354311732,1740406278671,-1142.522474,0.00017095,2]
[354311733,1740406278680,-500.0,0.00017178,2]
[354311734,1740406278690,-500.0,0.0001726,2]
[354311735,1740406278699,-417.82859915,0.00017342,2]
[354311736,1740406278709,-152.0,0.00022,2]
[354311737,1740406278719,-152.0,0.00023014,2]
[354311738,1740406278729,-152.0,0.00024164,2]
[354311739,1740406278739,-152.0,0.00028997,2]
[354311740,1740406278749,-408.17764618,0.0003,120]
[354311741,1740406278852,-1985.87999233,0.0003,120]
[354311742,1740406278863,-500000.0,0.0003,120]
[354311743,1740406278872,-3829.30741431,0.0003,120]
[354311744,1740406278882,-50021.61169283,0.0003,120]
[354311745,1740406278892,-1000.0,0.0003,120]
[354311746,1740406278901,-200.0,0.0003,120]
[354311747,1740406278911,-900.0,0.0003,31]
[354311748,1740406278920,-15020.24764305,0.0003,31]
[354311749,1740406278929,-4524.8193526,0.0003,120]
[354311750,1740406278938,-10000.0,0.0003,5]
[354311751,1740406278947,-2009.0,0.0003,30]
[354311752,1740406278957,-51756.33243847,0.0003,120]
[354311753,1740406278968,-37263.65719474,0.0003,30]
[354311754,1740406278977,-1130.08339145,0.0003,120]
[354311755,1740406278987,-3206.03744658,0.0003,30]
[354311756,1740406278997,-10000.0,0.0003,4]
[354311757,1740406279006,-10079.35918829,0.0003,120]
[354311758,1740406279016,-3165.15,0.0003,120]
[354311759,1740406279026,-2000.0,0.0003,120]
[354311760,1740406279036,-1445.776521,0.0003,120]
[354311761,1740406279047,-5756.27776276,0.0003,2]
[354311762,1740406279056,-200.0,0.0003,30]
[354311763,1740406279066,-151.0,0.0003,7]
[354311764,1740406279075,-151.0,0.0003,7]
[354311765,1740406279085,-151.0,0.0003,7]
[354311766,1740406279094,-151.0,0.0003,7]
[354311767,1740406279103,-151.0,0.0003,7]
[354311768,1740406279112,-527.17205,0.0003,2]
[354311769,1740406279122,-210.0,0.0003,2]
[354311770,1740406279131,-162.47,0.00030137,2]
[354311771,1740406279140,-150.0,0.00030152,30]
[354311772,1740406279149,-44123.19100341,0.00030187,3]
[354311773,1740406279159,-500.0,0.00030284,7]
[354311774,1740406279168,-500.0,0.00030284,7]
[354311775,1740406279178,-849.41,0.00030462,2]
[354311776,1740406279187,-153.49,0.000305,31]
[354311777,1740406279197,-153.49,0.000305,31]
[354311778,1740406279206,-153.49,0.000305,31]
[354311779,1740406279216,-153.49,0.000305,31]
[354311780,1740406279226,-153.49,0.000305,31]
[354311781,1740406279236,-153.49,0.000305,31]
[354311782,1740406279246,-153.49,0.000305,31]
[354311783,1740406279256,-153.49,0.000305,31]
[354311784,1740406279265,-153.49,0.000305,31]
[354311785,1740406279275,-153.49,0.000305,31]
[354311786,1740406279284,-153.49,0.000305,31]
[354311787,1740406279293,-153.49,0.000305,31]
[354311788,1740406279303,-548.0,0.00030613,30]
[354311789,1740406279312,-1389.08,0.000307,120]
[354311790,1740406279322,-3000.0,0.000307,2]
[354311791,1740406279331,-250.0,0.000308,30]
[354311792,1740406279340,-197.65555556,0.00030849,120]
[354311793,1740406279350,-180.0,0.00030959,120]
[354311794,1740406279362,-1032.98656335,0.00031,2]
[354311795,1740406279372,-324.55346519,0.00031,5]
[354311796,1740406279382,-1000.0,0.00031,120]
[354311797,1740406279392,-1500.0,0.00031,14]
[354311798,1740406279402,-379.211548,0.00031149,120]
[354311799,1740406279412,-614.02661969,0.0003138,7]
[354311800,1740406279422,-35248.02060627,0.000314,30]
[354311801,1740406279432,-18692.93116568,0.0003143,4]
[354311802,1740406279443,-1500.0,0.000315,14]
[354311803,1740406279453,-197.65555556,0.00031836,120]
[354311804,1740406279463,-500.0,0.000319,20]
[354311805,1740406279474,-500.0,0.00031928,7]
[354311806,1740406279483,-500.0,0.00031928,7]
[354311807,1740406279493,-1000.0,0.00032,30]
[354311808,1740406279503,-1000.0,0.00032,120]
[354311809,1740406279515,-1000.0,0.00032,30]
[354311810,1740406279526,-1007.0,0.00032,30]
[354311811,1740406279536,-5000.0,0.000322,40]
[354311812,1740406279547,-1187.29,0.00032317,30]
[354311813,1740406279557,-8771.92859178,0.000325,8]
[354311814,1740406279567,-50086.89007358,0.000325,30]
[354311815,1740406279577,-3138.24118144,0.000325,8]
[354311816,1740406279587,-1389.08,0.000326,120]
[354311817,1740406279596,-849.41,0.00032725,2]
[354311818,1740406279606,-4606.71422465,0.000328,2]
[354311819,1740406279615,-197.65555556,0.00032822,120]
[354311820,1740406279625,-158.27089622,0.00032833,2]
[354311821,1740406279635,-328.1,0.00032877,2]
[354311822,1740406279645,-300.0,0.00032877,15]
[354311823,1740406279654,-300.0,0.00032877,15]
[354311824,1740406279663,-300.0,0.00032877,15]
[354311825,1740406279673,-300.0,0.00032877,15]
[354311826,1740406279682,-300.0,0.00032877,15]
[354311827,1740406279699,-300.0,0.00032877,15]
[354311828,1740406279708,-300.0,0.00032877,15]
[354311829,1740406279718,-300.0,0.00032877,15]
[354311830,1740406279727,-353.0,0.00032877,15]
[354311831,1740406279736,-45000.0,0.000329,30]
[354311832,1740406279746,-17366.33557488,0.000329,120]
[354311833,1740406279755,-24872.12134783,0.00033,2]
[354311834,1740406279764,-18920.05693583,0.00033,120]
[354311835,1740406279773,-20205.40363416,0.00033,60]
[354311836,1740406279783,-300.0,0.00033,120]
[354311837,1740406279792,-8828.04185103,0.00033,30]
[354311838,1740406279801,-515.437453,0.00033,14]
[354311839,1740406279811,-210.0,0.00033,2]
[354311840,1740406279820,-180.0,0.00033151,120]
[354311841,1740406279829,-252.04128542,0.000333,2]
[354311842,1740406279838,-500.0,0.000333,20]
[354311843,1740406279848,-3000.0,0.000334,2]
[354311844,1740406279857,-1156.88302565,0.000335,2]
[354311845,1740406279867,-153.49,0.000335,31]
[354311846,1740406279876,-153.49,0.000335,31]
[354311847,1740406279885,-153.49,0.000335,31]
[354311848,1740406279895,-153.49,0.000335,31]
[354311849,1740406279904,-153.49,0.000335,31]
[354311850,1740406279913,-153.49,0.000335,31]
[354311851,1740406279922,-500.0,0.00033572,60]
[354311852,1740406279931,-500.0,0.00033572,60]
[354311853,1740406279940,-768.0,0.00033674,30]
[354311854,1740406279949,-197.65555556,0.00033808,120]
[354311855,1740406279958,-904.517763,0.00034,120]
[354311856,1740406279967,-2000.0,0.00034,120]
[354311857,1740406279976,-1677.36325155,0.00034036,6]
[354311858,1740406279985,-150.0,0.00034548,10]
[354311859,1740406279994,-500.0,0.00034668,60]
[354311860,1740406280002,-500.0,0.00034668,60]
[354311861,1740406280011,-197.65555556,0.00034795,120]
[354311862,1740406280021,-15041.73580353,0.000348,120]
[354311863,1740406280030,-4096.646,0.0003485,40]
[354311864,1740406280040,-1187.29,0.00034901,120]
[354311865,1740406280049,-849.41,0.00034989,2]
[354311866,1740406280058,-300.0,0.00034999,10]
[354311867,1740406280067,-1000.0,0.00034999,120]
[354311868,1740406280076,-1000.0,0.00035,2]
[354311869,1740406280085,-1000.0,0.00035,30]
[354311870,1740406280094,-21032.75586542,0.00035,30]
[354311871,1740406280103,-3900.0,0.00035,7]
[354311872,1740406280112,-3671.35,0.00035,120]
[354311873,1740406280121,-1000.0,0.00035,60]
[354311874,1740406280130,-481.40868488,0.00035,120]
[354311875,1740406280140,-183032.02878786,0.00035,120]
[354311876,1740406280149,-21566.41374256,0.00035,120]
[354311877,1740406280158,-2377.9130867,0.00035,90]
[354311878,1740406280167,-300.0,0.00035,120]
[354311879,1740406280176,-9318.00504102,0.00035,120]
[354311880,1740406280189,-1901.59343036,0.00035,120]
[354311881,1740406280200,-2898.13700354,0.00035,120]
[354311882,1740406280209,-2785.20449164,0.00035,120]
[354311883,1740406280220,-4793.6447409,0.00035,120]
[354311884,1740406280232,-1976.9924393,0.00035,120]
[354311885,1740406280243,-5402.14806693,0.00035,120]
[354311886,1740406280252,-8822.59391753,0.00035,120]
[354311887,1740406280262,-13204.09703545,0.00035,120]
[354311888,1740406280271,-3541.53791892,0.00035,120]
[354311889,1740406280281,-4017.58977786,0.00035,90]
[354311890,1740406280290,-8420.43580844,0.00035,120]
[354311891,1740406280299,-1084.45075432,0.00035,120]
[354311892,1740406280308,-131154.63995768,0.00035,30]
[354311893,1740406280317,-960.96729134,0.00035,120]
[354311894,1740406280326,-151.0,0.00035,7]
[354311895,1740406280335,-151.0,0.00035,7]
[354311896,1740406280344,-151.0,0.00035,7]
[354311897,1740406280453,-151.0,0.00035,7]
[354311898,1740406280475,-527.17205,0.00035,2]
[354311899,1740406280484,-10000.0,0.00035,120]
[354311900,1740406280493,-500.44082362,0.00035,120]
[354311901,1740406280503,-100000.0,0.00035,30]
[354311902,1740406280513,-10967.92756066,0.00035,120]
[354311903,1740406280525,-585.50720326,0.00035,120]
[354311904,1740406280542,-1336.78335151,0.00027188,2]
[354311905,1740406280553,-302.2027,0.00027188,2]
[354311906,1740406280565,-4345.59582123,0.00027188,2]
[354311907,1740406280574,-7211.06030027,0.00035,120]
[354311908,1740406280706,-340.08444017,0.00010344,2]
[354311909,1740406280715,-500.0,0.00016438,2]
[354311910,1740406280724,-500.0,0.00016438,2]
[354311911,1740406280734,-500.0,0.00016438,2]
[354311912,1740406280743,-500.0,0.0001652,2]
[354311913,1740406280752,-500.0,0.0001652,2]
[354311914,1740406280762,-500.0,0.00016602,2]
[354311915,1740406280771,-500.0,0.00016602,2]
[354311916,1740406280781,-500.0,0.00016684,2]
[354311917,1740406280791,-500.0,0.00016684,2]
[354311918,1740406280800,-500.0,0.00016767,2]
[354311919,1740406280809,-500.0,0.00016767,2]
[354311920,1740406280819,-20644.50493581,0.00035,120]
[354311921,1740406280828,-743.65,0.00035068,2]
[354311922,1740406280837,-7158.34655142,0.000351,30]
[354311923,1740406280847,-180.0,0.00035342,120]
[354311924,1740406280856,-500.0,0.00035666,2]
[354311925,1740406280866,-500.0,0.00035715,2]
[354311926,1740406280875,-222.5,0.00035761,2]
[354311927,1740406280885,-500.0,0.00035764,60]
[354311928,1740406280894,-500.0,0.00035764,60]
[354311929,1740406280903,-197.65555556,0.00035781,120]
[354311930,1740406280912,-2000.0,0.00036,120]
[354311931,1740406280921,-210.0,0.00036,2]
[354311932,1740406280930,-500.0,0.00036147,2]
[354311933,1740406280940,-3000.0,0.000362,2]
[354311934,1740406280949,-500.0,0.00036665,2]
[354311935,1740406280958,-3637.37267263,0.00036666,120]
[354311936,1740406280967,-479.38203932,0.00036675,120]
[354311937,1740406280976,-197.65555556,0.00036767,120]
[354311938,1740406280985,-6802.78948307,0.000368,120]
[354311939,1740406280994,-338.62602158,0.0003686,60]
[354311940,1740406281003,-570.74922822,0.0003686,60]
[354311941,1740406281012,-151514.44978524,0.00037,2]
[354311942,1740406281022,-10069.7058592,0.00037,30]
[354311943,1740406281031,-10000.0,0.00037,120]
[354311944,1740406281041,-11363.0,0.00037,117]
[354311945,1740406281051,-500.0,0.0003701,2]
[354311946,1740406281060,-1075.0,0.00037042,30]
[354311947,1740406281069,-849.41,0.00037253,2]
[354311948,1740406281078,-400.0,0.000374,120]
[354311949,1740406281087,-1187.29,0.00037485,120]
[354311950,1740406281096,-8443.03724822,0.000375,120]
[354311951,1740406281105,-180.0,0.00037534,120]
[354311952,1740406281114,-4156.00664684,0.0003759,2]
[354311953,1740406281123,-650.45468837,0.00037644,2]
[354311954,1740406281132,-500.0,0.00037683,2]
[354311955,1740406281141,-20000.0,0.000377,30]
[354311956,1740406281150,-197.65555556,0.00037753,120]
[354311957,1740406281159,-166.45271558,0.000378,2]
[354311958,1740406281168,-1765.70590122,0.000378,60]
[354311959,1740406281177,-500.0,0.00037804,2]
[354311960,1740406281186,-500.0,0.00037853,2]
[354311961,1740406281195,-11347.57964044,0.00037999,120]
[354311962,1740406281204,-600.0,0.00038,120]
[354311963,1740406281213,-10000.0,0.00038,30]
[354311964,1740406281223,-2173.72163249,0.00038,2]
[354311965,1740406281232,-1500.0,0.00038,60]
[354311966,1740406281241,-7357.91,0.00038,14]
[354311967,1740406281250,-10000.0,0.00038,30]
[354311968,1740406281260,-300.0,0.00038,120]
[354311969,1740406281269,-2782.37233496,0.00038,120]
[354311970,1740406281278,-500.0,0.0003827,2]
[354311971,1740406281287,-509.0,0.000383,20]
[354311972,1740406281296,-151.0,0.000384,14]
[354311973,1740406281305,-256351.45396642,0.000384,33]
[354311974,1740406281314,-151.0,0.000384,14]
[354311975,1740406281324,-151.0,0.000384,14]
[354311976,1740406281333,-153.503274,0.000384,14]
[354311977,1740406281342,-18601.01131042,0.000385,120]
[354311978,1740406281351,-158.27089622,0.00038567,2]
[354311979,1740406281365,-197.65555556,0.0003874,120]
[354311980,1740406281374,-1000.0,0.000389,20]
[354311981,1740406281383,-3000.0,0.000389,2]
[354311982,1740406281393,-12499.3,0.00038909,117]
[354311983,1740406281403,-264.25,0.0003897,120]
[354311984,1740406281412,-413.0,0.0003897,120]
[354311985,1740406281421,-150.5,0.0003898,120]
[354311986,1740406281431,-413.0,0.0003898,120]
[354311987,1740406281440,-7388.34506648,0.0003899,14]
[354311988,1740406281450,-150.5,0.0003899,120]
[354311989,1740406281459,-413.0,0.0003899,120]
[354311990,1740406281468,-80168.22431405,0.00038999,120]
[354311991,1740406281477,-260.0,0.00039,5]
[354311992,1740406281487,-2300.0,0.00039,120]
[354311993,1740406281496,-4462.32428851,0.00039,30]